fUSD/lending_fUSD_20260218
["ID","MTS","AMOUNT","RATE_DAILY","PERIOD"]
[405920375,1771413294446,-10000.01,6.556e-05,2]
[405920376,1771413294580,-3870.81,6.556e-05,2]
[405920377,1771413424980,150.0,0.00011233,120]
[405920378,1771413744094,162.39,0.00018,30]
[405920390,1771414233604,-150.0,6.753e-05,2]
[405920395,1771414237740,-16.66,6.753e-05,2]
[405920397,1771414237750,-166.66,6.976e-05,2]
[405920398,1771414237759,-166.66,7.199e-05,2]
[405920399,1771414237769,-166.66,7.422e-05,2]
[405920400,1771414237778,-250.0,7.428e-05,2]
[405920401,1771414237787,-166.66,7.645e-05,2]
[405920402,1771414237797,-166.66,7.868e-05,2]
[405920403,1771414237807,-10457.55,8.219e-05,2]
[405920404,1771414237818,-317.85855574,8.923e-05,2]
[405920405,1771414237827,-291.0,9.871e-05,2]
[405920406,1771414237838,-190.0,9.871e-05,2]
[405920407,1771414237848,-21159.47305191,0.00010296,2]
[405920408,1771414237858,-500.0,0.00010367,2]
[405920409,1771414237869,-500.0,0.00010367,2]
[405920410,1771414237878,-269.09940998,0.000107,2]
[405920411,1771414237888,-150.0,0.00010959,2]
[405920412,1771414237897,-6035.69121348,0.00011,2]
[405920413,1771414237906,-1500.0,0.00011095,2]
[405920414,1771414237915,-150.99,0.00011114,2]
[405920415,1771414237924,-9999.99,0.00011114,2]
[405920416,1771414237933,-150.0,0.00011233,2]
[405920417,1771414237943,-10457.55,0.00011507,2]
[405920418,1771414237953,-308.43277492,0.000125,2]
[405920419,1771414237964,-2500.0,0.000128,2]
[405920420,1771414237974,-150000.0,0.000129,2]
[405920421,1771414237984,-5623.94740036,0.00013,2]
[405920422,1771414237997,-7993.76060363,0.00013,15]
[405920423,1771414238008,-500.0,0.00013,2]
[405920424,1771414238018,-500.0,0.00013,2]
[405920426,1771414238027,-500.0,0.00013,2]
[405920428,1771414238036,-700.0,0.00013,2]
[405920430,1771414238045,-5363.45378447,0.0001305,2]
[405920463,1771414238332,-3240.0,0.00013425,2]
[405920465,1771414238342,-1000.0,0.000135,2]
[405920467,1771414238351,-9137.12,0.00013699,2]
[405920469,1771414238360,-200.0,0.00013699,2]
[405920471,1771414238370,-500.0,0.00013699,2]
[405920473,1771414238379,-500.0,0.00013699,2]
[405920475,1771414238389,-500.0,0.00013699,2]
[405920477,1771414238398,-500.0,0.00013699,2]
[405920479,1771414238407,-500.0,0.00013699,2]
[405920481,1771414238416,-500.0,0.00013699,2]
[405920483,1771414238425,-500.0,0.00013699,2]
[405920485,1771414238434,-159.78130504,0.00013699,2]
[405920487,1771414238443,-500.0,0.00013699,2]
[405920489,1771414238453,-500.0,0.00013699,2]
[405920491,1771414238463,-163.85864261,0.00013699,2]
[405920493,1771414238472,-500.0,0.00013699,2]
[405920495,1771414238481,-500.0,0.00013699,2]
[405920497,1771414238491,-500.0,0.00013699,2]
[405920499,1771414238500,-500.0,0.00013699,2]
[405920501,1771414238509,-500.0,0.00013699,2]
[405920503,1771414238518,-500.0,0.00013699,2]
[405920505,1771414238528,-500.0,0.00013699,2]
[405920507,1771414238538,-500.0,0.00013699,2]
[405920509,1771414238547,-500.0,0.00013699,2]
[405920511,1771414238556,-500.0,0.00013699,2]
[405920513,1771414238565,-500.0,0.00013699,2]
[405920515,1771414238575,-500.0,0.00013699,2]
[405920517,1771414238584,-500.0,0.00013699,2]
[405920519,1771414238593,-500.0,0.00013699,2]
[405920521,1771414238603,-552.89419638,0.00013699,2]
[405920523,1771414238612,-500.0,0.00013699,2]
[405920525,1771414238625,-561.93408671,0.00013699,2]
[405920527,1771414238635,-163.17658841,0.00013699,2]
[405920530,1771414238645,-500.0,0.00013699,2]
[405920532,1771414238655,-553.95,0.00013699,2]
[405920534,1771414238664,-553.95,0.00013973,2]
[405920537,1771414238681,-1500.0,0.00014,2]
[405920539,1771414238693,-275.55172821,0.0001405,2]
[405920541,1771414238703,-500.0,0.0001405,2]
[405920543,1771414238713,-500.0,0.0001405,2]
[405920545,1771414238723,-500.0,0.0001405,2]
[405920547,1771414238733,-500.0,0.0001405,2]
[405920549,1771414238742,-500.0,0.0001405,2]
[405920551,1771414238752,-500.0,0.0001405,2]
[405920553,1771414238761,-2286.57936952,0.0001421,7]
[405920555,1771414238771,-1000.0,0.00014247,2]
[405920557,1771414238781,-961.91291147,0.00014247,2]
[405920559,1771414238790,-500.0,0.00014247,2]
[405920561,1771414238800,-500.0,0.00014247,2]
[405920563,1771414238809,-956.56316713,0.00014247,2]
[405920565,1771414238818,-1000.0,0.00014247,2]
[405920567,1771414238828,-1000.0,0.00014247,2]
[405920569,1771414238838,-977.33821748,0.00014247,2]
[405920571,1771414238847,-567.47328951,0.00014247,2]
[405920574,1771414238857,-500.0,0.00014247,2]
[405920576,1771414238867,-500.0,0.00014247,2]
[405920578,1771414238876,-1000.0,0.00014247,2]
[405920580,1771414238886,-1000.0,0.00014247,2]
[405920582,1771414238895,-1000.0,0.00014247,2]
[405920584,1771414238905,-501.64879923,0.00014247,2]
[405920586,1771414238914,-503.00619934,0.00014247,2]
[405920588,1771414238923,-1000.0,0.00014247,2]
[405920589,1771414238932,-1000.0,0.00014247,2]
[405920591,1771414238941,-1000.0,0.00014247,2]
[405920593,1771414238950,-500.0,0.00014247,2]
[405920596,1771414238961,-1034.53110943,0.00014247,2]
[405920597,1771414238970,-1000.0,0.00014247,2]
[405920600,1771414238979,-500.0,0.00014247,2]
[405920601,1771414238989,-500.0,0.00014247,2]
[405920604,1771414238998,-553.95,0.00014247,2]
[405920606,1771414239008,-553.95,0.00014521,2]
[405920607,1771414239017,-524.16891164,0.00014795,2]
[405920609,1771414239027,-1500.0,0.00014795,2]
[405920612,1771414239036,-1500.0,0.00014795,2]
[405920614,1771414239045,-537.4625703,0.00014795,2]
[405920616,1771414239055,-1500.0,0.00014795,2]
[405920617,1771414239064,-1102.36130291,0.00014795,2]
[405920618,1771414239074,-1500.0,0.00014795,2]
[405920619,1771414239083,-1191.23979414,0.00014795,2]
[405920620,1771414239093,-1500.0,0.00014795,2]
[405920621,1771414239103,-553.95,0.00014795,2]
[405920622,1771414239114,-250.0,0.00015,2]
[405920623,1771414239124,-554.00615053,0.00015068,2]
[405920624,1771414239134,-779.93866255,0.00015342,2]
[405920625,1771414239144,-1301.75028282,0.00015342,2]
[405920626,1771414239154,-2000.0,0.00015342,2]
[405920627,1771414239164,-2000.0,0.00015342,2]
[405920628,1771414239173,-1221.59968024,0.00015342,2]
[405920629,1771414239183,-2251.5658334,0.00015452,2]
[405920630,1771414239193,-150.0,0.00015552,2]
[405920631,1771414239206,-1275.0,0.00015552,2]
[405920632,1771414239216,-1209.0,0.00015552,2]
[405920633,1771414239225,-1164.0,0.00015552,2]
[405920634,1771414239235,-2251.56583335,0.00015802,2]
[405920635,1771414239244,-1034.2126926,0.0001589,2]
[405920636,1771414239253,-2500.0,0.0001589,2]
[405920637,1771414239263,-506.0,0.0001605,2]
[405920638,1771414239273,-2251.56583335,0.00016151,2]
[405920639,1771414239283,-87361.14061283,0.000162,5]
[405920640,1771414239293,-984.0,0.000164,2]
[405920641,1771414239302,-2836.0,0.000164,2]
[405920642,1771414239312,-307.2,0.00016438,2]
[405920643,1771414239320,-227.84,0.00016438,2]
[405920644,1771414239330,-3000.0,0.00016438,2]
[405920645,1771414239340,-2251.56583335,0.00016501,2]
[405920646,1771414239349,-167.38,0.00016712,2]
[405920647,1771414239358,-2828.0,0.0001672,2]
[405920648,1771414239368,-160.0,0.0001672,2]
[405920649,1771414239378,-842.0,0.0001672,2]
[405920650,1771414239387,-2836.0,0.0001672,2]
[405920651,1771414239396,-2251.56583335,0.00016851,2]
[405920652,1771414239405,-2556.33728001,0.000169,4]
[405920653,1771414239414,-175.27847489,0.00016919,2]
[405920654,1771414239423,-150.0,0.00016986,2]
[405920655,1771414239433,-3262.81883542,0.00016986,2]
[405920656,1771414239442,-300.0,0.00017,2]
[405920657,1771414239451,-994541.89141535,0.00017,2]
[405920658,1771414239469,-6393.86596795,0.00017,2]
[405920659,1771414239493,-1385.11884596,0.00017,2]
[405920660,1771414239506,-796.0,0.00017,2]
[405920661,1771414239518,-1822.06105292,0.00017,2]
[405920662,1771414239879,-617.0,0.00015552,2]
[405920663,1771414239891,-21632.351986,0.00017,2]
[405920664,1771414239899,-506.0,0.00017019,2]
[405920665,1771414239910,-2836.0,0.0001704,2]
[405920666,1771414239920,-2836.0,0.0001704,2]
[405920667,1771414239930,-2251.56583335,0.00017201,2]
[405920668,1771414239940,-231.0,0.00017273,2]
[405920669,1771414239949,-842.0,0.0001736,2]
[405920670,1771414239958,-160.0,0.0001736,2]
[405920671,1771414239967,-2836.0,0.0001736,2]
[405920672,1771414239976,-2251.56583335,0.0001755,2]
[405920673,1771414239986,-2836.0,0.0001768,2]
[405920674,1771414239998,-2836.0,0.0001768,2]
[405920675,1771414240008,-784.44122355,0.000177,2]
[405920676,1771414240017,-403.0,0.000177,5]
[405920677,1771414240028,-168.0,0.00017702,2]
[405920678,1771414240037,-168.0,0.0001778,2]
[405920679,1771414240047,-151.0,0.00017789,2]
[405920680,1771414240056,-151.0,0.00017789,2]
[405920681,1771414240065,-151.0,0.00017789,2]
[405920682,1771414240075,-151.0,0.00017789,2]
[405920683,1771414240085,-151.0,0.00017789,2]
[405920684,1771414240096,-151.0,0.00017789,2]
[405920685,1771414240105,-151.0,0.00017789,2]
[405920686,1771414240116,-151.0,0.00017789,2]
[405920687,1771414240126,-151.0,0.00017789,2]
[405920688,1771414240136,-151.0,0.00017789,2]
[405920689,1771414240146,-151.0,0.00017789,2]
[405920690,1771414240156,-151.0,0.00017789,2]
[405920691,1771414240164,-151.0,0.00017789,2]
[405920692,1771414240173,-151.0,0.00017789,2]
[405920693,1771414240183,-151.0,0.00017789,2]
[405920694,1771414240192,-151.0,0.00017789,2]
[405920695,1771414240202,-151.0,0.00017789,2]
[405920696,1771414240214,-151.0,0.00017789,2]
[405920697,1771414240224,-151.0,0.00017789,2]
[405920698,1771414240233,-151.0,0.00017789,2]
[405920699,1771414240242,-500.0,0.000178,2]
[405920700,1771414240253,-500.0,0.000178,2]
[405920701,1771414240263,-500.0,0.000178,2]
[405920702,1771414240274,-500.0,0.000178,2]
[405920703,1771414240285,-500.0,0.000178,2]
[405920704,1771414240296,-500.0,0.000178,2]
[405920705,1771414240305,-500.0,0.000178,2]
[405920706,1771414240314,-500.0,0.000178,2]
[405920707,1771414240323,-500.0,0.000178,2]
[405920708,1771414240332,-500.0,0.000178,2]
[405920709,1771414240343,-500.0,0.000178,2]
[405920710,1771414240355,-500.0,0.000178,2]
[405920711,1771414240365,-500.0,0.000178,2]
[405920712,1771414240374,-500.0,0.000178,2]
[405920713,1771414240384,-500.0,0.000178,2]
[405920714,1771414240393,-500.0,0.000178,2]
[405920715,1771414240403,-500.0,0.000178,2]
[405920716,1771414240413,-500.0,0.000178,2]
[405920717,1771414240424,-500.0,0.000178,2]
[405920718,1771414240433,-500.0,0.000178,2]
[405920719,1771414240443,-500.0,0.000178,2]
[405920720,1771414240452,-500.0,0.000178,2]
[405920721,1771414240461,-500.0,0.000178,2]
[405920722,1771414240471,-500.0,0.000178,2]
[405920723,1771414240480,-500.0,0.000178,2]
[405920725,1771414240490,-500.0,0.000178,2]
[405920726,1771414240500,-500.0,0.000178,2]
[405920727,1771414240510,-500.0,0.000178,2]
[405920728,1771414240519,-500.0,0.000178,2]
[405920729,1771414240531,-500.0,0.000178,2]
[405920730,1771414240541,-500.0,0.000178,2]
[405920731,1771414240553,-500.0,0.000178,2]
[405920732,1771414240567,-500.0,0.000178,2]
[405920733,1771414240576,-500.0,0.000178,2]
[405920734,1771414240587,-500.0,0.000178,2]
[405920735,1771414240597,-500.0,0.000178,2]
[405920736,1771414240607,-500.0,0.000178,2]
[405920737,1771414240617,-500.0,0.000178,2]
[405920738,1771414240626,-500.0,0.000178,2]
[405920739,1771414240636,-500.0,0.000178,2]
[405920740,1771414240645,-500.0,0.000178,2]
[405920741,1771414240655,-500.0,0.000178,2]
[405920742,1771414240665,-500.0,0.000178,2]
[405920743,1771414240674,-500.0,0.000178,2]
[405920744,1771414240683,-500.0,0.000178,2]
[405920745,1771414240693,-500.0,0.000178,2]
[405920746,1771414240702,-500.0,0.000178,2]
[405920747,1771414240711,-500.0,0.000178,2]
[405920748,1771414240721,-472.68340978,0.000178,2]
[405920749,1771414240731,-800.0,0.00017808,2]
[405920750,1771414240740,-1004.26991434,0.0001786,2]
[405920751,1771414240750,-538.2049,0.000179,2]
[405920752,1771414240759,-1281.78916105,0.000179,2]
[405920753,1771414240768,-1281.78916105,0.000179,2]
[405920754,1771414240778,-1281.78916105,0.000179,2]
[405920755,1771414240787,-1281.78916105,0.000179,2]
[405920756,1771414240796,-1281.78916105,0.000179,2]
[405920757,1771414240805,-1281.78916105,0.000179,2]
[405920758,1771414240814,-1281.78916105,0.000179,2]
[405920759,1771414240823,-1281.78916105,0.000179,2]
[405920760,1771414240832,-2911.70783435,0.000179,3]
[405920761,1771414240841,-2251.56583335,0.000179,2]
[405920762,1771414240850,-210.82916584,0.000179,2]
[405920763,1771414240859,-1844.23578446,0.000179,2]
[405920764,1771414240868,-3534.30165173,0.000179,2]
[405920765,1771414240877,-168.0,0.00017926,2]
[405920766,1771414240887,-1000.0,0.0001797,2]
[405920767,1771414240897,-500.0,0.0001797,2]
[405920768,1771414240908,-1000.0,0.0001797,2]
[405920769,1771414240918,-500.0,0.0001797,2]
[405920770,1771414240930,-500.0,0.0001797,2]
[405920771,1771414240939,-1000.0,0.0001797,2]
[405920772,1771414240949,-500.0,0.0001797,2]
[405920773,1771414240958,-500.0,0.0001797,2]
[405920774,1771414240969,-1000.0,0.0001797,2]
[405920775,1771414240979,-1000.0,0.0001797,2]
[405920776,1771414240989,-900.0,0.0001797,2]
[405920777,1771414241000,-1000.0,0.0001797,2]
[405920778,1771414241010,-1602.42010233,0.0001797,2]
[405920779,1771414241020,-506.0,0.00017988,3]
[405920780,1771414241030,-2078.03494059,0.0001799,2]
[405920781,1771414241040,-293.37063665,0.00017999,2]
[405920782,1771414241049,-150.0,0.00018,7]
[405920783,1771414241059,-25000.0,0.00018,3]
[405920784,1771414241068,-8347527.31956297,0.00018,2]
[405920792,1771414243433,-33757.93508126,0.00018,2]
[405920793,1771414244280,-7251.49528124,0.00018,2]
[405920795,1771414245821,-13467.79297328,0.00018,2]
[405920800,1771414246077,-78.76349975,0.00018,2]
[405920817,1771415432031,-269.63544121,0.00010187,2]
[405920818,1771415432043,-1597.05436718,0.00010187,2]
[405920819,1771415432055,-558.27538772,0.00010187,2]
[405920820,1771415432066,-2382.46942602,0.00010187,2]
[405920821,1771415432081,-240.50377787,0.00010187,2]
[405920822,1771415432091,-300.0,0.00010239,2]
[405920823,1771415432101,-1200.0,0.00010239,2]
[405920824,1771415432110,-1350.28596239,0.0001024,2]
[405920825,1771415432121,-312.7,0.0001024,2]
[405920826,1771415432136,-909.21025974,0.0001024,2]
[405920834,1771415437899,-434.15793142,0.00010224,2]
[405920836,1771415437910,-65.84206858,0.00010224,2]
[405920838,1771415437920,-2427.80377787,0.0001024,2]
[405920840,1771415437929,-262.45660152,0.00010266,2]
[405920842,1771415437939,-2690.94235717,0.00010322,2]
[405920843,1771415437950,-2309.05764283,0.00010322,2]
[405920844,1771415437961,-5000.0,0.00010322,2]
[405920845,1771415437970,-5000.0,0.00010322,2]
[405920846,1771415437979,-500.0,0.00010367,2]
[405920847,1771415437989,-500.0,0.00010367,2]
[405920848,1771415437999,-500.0,0.00010367,2]
[405920849,1771415438009,-500.0,0.00010367,2]
[405920850,1771415438019,-500.0,0.00010367,2]
[405920851,1771415438028,-709.56330421,0.00010386,2]
[405920852,1771415438038,-3102243.6492436,0.00010396,2]
[405920853,1771415438061,-8102.7196177,0.00010396,2]
[405920854,1771415438072,-894.29368868,0.00010396,2]
[405920855,1771415438084,-1893.48,0.00010396,2]
[405920856,1771415438107,-552.51912002,0.00010396,2]
[405920887,1771415439954,-500.0,0.00010214,2]
[405920888,1771415439965,-386313.33833,0.00010396,2]
[405920889,1771415439975,-614.7452615,0.00010488,2]
[405920890,1771415439986,-2356.20110116,0.00010588,2]
[405920891,1771415439996,-150.0,0.00010688,2]
[405920892,1771415440007,-262.45660152,0.00010691,2]
[405920893,1771415440016,-200.0,0.00010748,2]
[405920894,1771415440027,-904.0,0.00010802,2]
[405920895,1771415440037,-204.304563,0.00010837,2]
[405920896,1771415440046,-1000.0,0.00010863,2]
[405920897,1771415440057,-9999.99,0.00010915,2]
[405920898,1771415440069,-150.99,0.00010915,2]
[405920899,1771415440079,-1000.0,0.00010915,2]
[405920900,1771415440090,-1009.709324,0.00010915,2]
[405920901,1771415440100,-1000.0,0.00010915,2]
[405920902,1771415440112,-695.89534376,0.00010915,2]
[405920903,1771415440122,-150.0,0.00010959,2]
[405920904,1771415440132,-219.0,0.00011003,2]
[405920905,1771415440143,-647.0,0.00011102,2]
[405920906,1771415440152,-262.45660152,0.00011116,2]
[405920907,1771415440162,-2500.0,0.00011117,2]
[405920908,1771415440171,-284.0,0.00011178,2]
[405920909,1771415440181,-709.56330421,0.000112,2]
[405920910,1771415440190,-60330.40230332,0.0001121,2]
[405920911,1771415440199,-2251.5658334,0.0001121,2]
[405920912,1771415440209,-500.0,0.00011216,2]
[405920913,1771415440218,-293.37063665,0.00011216,2]
[405920914,1771415440227,-634.52199724,0.00011216,2]
[405920915,1771415440236,-260.0244547,0.00011216,2]
[405920916,1771415440245,-563.18241587,0.00011216,2]
[405920917,1771415440254,-500.0,0.00011216,2]
[405920918,1771415440263,-500.0,0.00011216,2]
[405920919,1771415440271,-500.0,0.00011216,2]
[405920920,1771415440281,-500.0,0.00011216,2]
[405920921,1771415440290,-500.0,0.00011216,2]
[405920922,1771415440299,-500.0,0.00011216,2]
[405920923,1771415440308,-500.0,0.00011216,2]
[405920924,1771415440317,-500.0,0.00011216,2]
[405920925,1771415440326,-500.0,0.00011216,2]
[405920926,1771415440335,-500.0,0.00011216,2]
[405920927,1771415440345,-500.0,0.00011216,2]
[405920928,1771415440353,-500.0,0.00011216,2]
[405920929,1771415440362,-500.0,0.00011216,2]
[405920930,1771415440373,-500.0,0.00011216,2]
[405920932,1771415440382,-500.0,0.00011216,2]
[405920934,1771415440391,-500.0,0.00011216,2]
[405920936,1771415440400,-500.0,0.00011216,2]
[405920938,1771415440409,-500.0,0.00011216,2]
[405920940,1771415440419,-500.0,0.00011216,2]
[405920942,1771415440428,-500.0,0.00011216,2]
[405920944,1771415440437,-500.0,0.00011216,2]
[405920946,1771415440447,-500.0,0.00011216,2]
[405920948,1771415440456,-500.0,0.00011216,2]
[405920950,1771415440465,-500.0,0.00011216,2]
[405920952,1771415440474,-500.0,0.00011216,2]
[405920954,1771415440483,-500.0,0.00011216,2]
[405920956,1771415440492,-500.0,0.00011216,2]
[405920958,1771415440501,-500.0,0.00011216,2]
[405920960,1771415440510,-500.0,0.00011216,2]
[405920978,1771415440751,-500.0,0.00011216,2]
[405920979,1771415440760,-500.0,0.00011216,2]
[405920980,1771415440770,-500.0,0.00011216,2]
[405920981,1771415440779,-500.0,0.00011216,2]
[405920982,1771415440789,-500.0,0.00011216,2]
[405920983,1771415440798,-500.0,0.00011216,2]
[405920984,1771415440810,-500.0,0.00011216,2]
[405920985,1771415440820,-500.0,0.00011216,2]
[405920986,1771415440829,-500.0,0.00011216,2]
[405920987,1771415440839,-628.02516948,0.00011216,2]
[405920988,1771415440849,-500.0,0.00011216,2]
[405920989,1771415440858,-500.0,0.00011216,2]
[405920990,1771415440867,-500.0,0.00011216,2]
[405920991,1771415440876,-500.0,0.00011216,2]
[405920992,1771415440886,-500.0,0.00011216,2]
[405920993,1771415440895,-500.0,0.00011216,2]
[405920994,1771415440905,-500.0,0.00011216,2]
[405920995,1771415440914,-500.0,0.00011216,2]
[405920996,1771415440924,-500.0,0.00011216,2]
[405920997,1771415440933,-500.0,0.00011216,2]
[405920998,1771415440943,-500.0,0.00011216,2]
[405920999,1771415440953,-500.0,0.00011216,2]
[405921000,1771415440962,-500.0,0.00011216,2]
[405921001,1771415440971,-500.0,0.00011216,2]
[405921002,1771415440981,-500.0,0.00011216,2]
[405921003,1771415440990,-500.0,0.00011216,2]
[405921004,1771415441000,-500.0,0.00011216,2]
[405921005,1771415441009,-500.0,0.00011216,2]
[405921006,1771415441018,-500.0,0.00011216,2]
[405921007,1771415441028,-500.0,0.00011216,2]
[405921008,1771415441037,-500.0,0.00011216,2]
[405921009,1771415441046,-500.0,0.00011216,2]
[405921010,1771415441055,-500.0,0.00011216,2]
[405921011,1771415441065,-500.0,0.00011216,2]
[405921012,1771415441074,-500.0,0.00011216,2]
[405921013,1771415441083,-500.0,0.00011216,2]
[405921014,1771415441092,-500.0,0.00011216,2]
[405921015,1771415441101,-500.0,0.00011216,2]
[405921016,1771415441110,-500.0,0.00011216,2]
[405921017,1771415441119,-195.0,0.00011236,2]
[405921018,1771415441129,-195.0,0.00011236,2]
[405921019,1771415441138,-195.0,0.00011236,2]
[405921020,1771415441147,-195.0,0.00011236,2]
[405921021,1771415441156,-195.0,0.00011236,2]
[405921022,1771415441165,-5000.0,0.00011236,2]
[405921023,1771415441174,-300.0,0.00011236,2]
[405921024,1771415441184,-300.0,0.00011236,2]
[405921025,1771415441193,-300.0,0.00011236,2]
[405921026,1771415441203,-300.0,0.00011236,2]
[405921027,1771415441212,-300.0,0.00011236,2]
[405921028,1771415441222,-250.0,0.00011236,2]
[405921029,1771415441232,-420.0,0.0001126,2]
[405921030,1771415441241,-1680.0,0.00011263,2]
[405921031,1771415441251,-250.0,0.00011293,2]
[405921032,1771415441260,-300.0,0.00011293,2]
[405921033,1771415441269,-300.0,0.00011293,2]
[405921034,1771415441279,-300.0,0.00011293,2]
[405921035,1771415441296,-300.0,0.00011293,2]
[405921036,1771415441308,-251.29438438,0.00011293,2]
[405921037,1771415441318,-151.0,0.0001131,2]
[405921038,1771415441328,-151.0,0.0001131,2]
[405921039,1771415441339,-200.0,0.0001131,2]
[405921040,1771415441348,-151.0,0.0001131,2]
[405921041,1771415441358,-500.0,0.0001131,2]
[405921042,1771415441367,-151.0,0.0001131,2]
[405921043,1771415441377,-500.0,0.0001131,2]
[405921044,1771415441387,-151.0,0.0001131,2]
[405921045,1771415441397,-151.0,0.0001131,2]
[405921046,1771415441407,-500.0,0.0001131,2]
[405921047,1771415441416,-151.0,0.0001131,2]
[405921048,1771415441426,-151.0,0.0001131,2]
[405921049,1771415441435,-500.0,0.0001131,2]
[405921050,1771415441444,-151.0,0.0001131,2]
[405921051,1771415441455,-151.0,0.0001131,2]
[405921052,1771415441465,-500.0,0.0001131,2]
[405921053,1771415441476,-151.0,0.0001131,2]
[405921054,1771415441485,-151.0,0.0001131,2]
[405921055,1771415441495,-500.0,0.0001131,2]
[405921056,1771415441504,-151.0,0.0001131,2]
[405921057,1771415441514,-151.0,0.0001131,2]
[405921058,1771415441523,-500.0,0.0001131,2]
[405921059,1771415441532,-151.0,0.0001131,2]
[405921060,1771415441542,-151.0,0.0001131,2]
[405921061,1771415441552,-500.0,0.0001131,2]
[405921062,1771415441561,-151.0,0.0001131,2]
[405921063,1771415441571,-151.0,0.0001131,2]
[405921064,1771415441581,-500.0,0.0001131,2]
[405921065,1771415441592,-151.0,0.0001131,2]
[405921066,1771415441601,-151.0,0.0001131,2]
[405921067,1771415441612,-500.0,0.0001131,2]
[405921068,1771415441621,-151.0,0.0001131,2]
[405921069,1771415441631,-151.0,0.0001131,2]
[405921070,1771415441639,-500.0,0.0001131,2]
[405921071,1771415441648,-151.0,0.0001131,2]
[405921072,1771415441658,-151.0,0.0001131,2]
[405921073,1771415441667,-151.0,0.0001131,2]
[405921074,1771415441676,-151.0,0.0001131,2]
[405921075,1771415441686,-500.0,0.0001131,2]
[405921076,1771415441695,-151.0,0.0001131,2]
[405921077,1771415441705,-151.0,0.0001131,2]
[405921078,1771415441714,-500.0,0.0001131,2]
[405921079,1771415441724,-151.0,0.0001131,2]
[405921080,1771415441739,-500.0,0.0001131,2]
[405921081,1771415441748,-151.0,0.0001131,2]
[405921082,1771415441758,-500.0,0.0001131,2]
[405921083,1771415441768,-151.0,0.0001131,2]
[405921084,1771415441781,-500.0,0.0001131,2]
[405921085,1771415441790,-500.0,0.0001131,2]
[405921086,1771415441800,-500.0,0.0001131,2]
[405921087,1771415441810,-500.0,0.0001131,2]
[405921088,1771415441823,-500.0,0.0001131,2]
[405921089,1771415441833,-500.0,0.0001131,2]
[405921090,1771415441842,-500.0,0.0001131,2]
[405921091,1771415441851,-835.159,0.00011317,2]
[405921092,1771415441861,-180.591,0.00011317,2]
[405921093,1771415441870,-250.0,0.00011346,2]
[405921094,1771415441879,-164.99,0.00011377,2]
[405921095,1771415441889,-538.2049,0.00011407,2]
[405921096,1771415441898,-1500.0,0.00011463,2]
[405921097,1771415441908,-1460.671579,0.00011463,2]
[405921098,1771415441917,-255.0,0.00011724,2]
[405921099,1771415441927,-245.2765902,0.00011858,2]
[405921100,1771415441937,-60330.40230329,0.00011942,2]
[405921101,1771415441946,-2000.0,0.00012011,2]
[405921102,1771415441956,-2251.56583335,0.00012166,2]
[405921103,1771415441965,-164.99,0.0001219,2]
[405921104,1771415441975,-1000.0,0.00012221,2]
[405921105,1771415441985,-587.0,0.00012383,2]